[Event "Masters Tournament (MTO)"]
[Site "Biel, Switzerland"]
[Date "2026.07.20"]
[Round "7.36"]
[White "Jelicic, Hugo"]
[Black "Al Ibrahim, Abdulrahman"]
[Result "1/2-1/2"]
[TimeControl "100+30+30sec/move"]
[WhiteTitle "-"]
[BlackTitle "-"]
[WhiteFideId "1349040"]
[BlackFideId "10300503"]
[WhiteElo "1907"]
[BlackElo "2016"]

1. d4 {[%clk 01:35:01]} {[%emt 00:05:59]} d5 {[%clk 01:40:54]} {[%emt
00:00:06]} 2. Nf3 {[%clk 01:35:22]} {[%emt 00:00:10]} Nf6 {[%clk 01:41:18]}
{[%emt 00:00:06]} 3. c4 {[%clk 01:29:11]} {[%emt 00:06:41]} e6 {[%clk
01:41:41]} {[%emt 00:00:07]} 4. Nc3 {[%clk 01:29:29]} {[%emt 00:00:11]} a6
{[%clk 01:41:50]} {[%emt 00:00:21]} 5. e3 {[%clk 01:28:16]} {[%emt 00:01:43]}
Nbd7 {[%clk 01:41:30]} {[%emt 00:00:50]} 6. b3 {[%clk 01:24:20]} {[%emt
00:04:27]} b6 {[%clk 01:41:48]} {[%emt 00:00:12]} 7. Bd3 {[%clk 01:23:20]}
{[%emt 00:01:29]} Bd6 {[%clk 01:41:07]} {[%emt 00:01:11]} 8. O-O {[%clk
01:23:03]} {[%emt 00:00:48]} Bb7 {[%clk 01:41:27]} {[%emt 00:00:10]} 9. Bb2
{[%clk 01:22:52]} {[%emt 00:00:41]} O-O {[%clk 01:41:50]} {[%emt 00:00:07]} 10.
Qe2 {[%clk 01:19:09]} {[%emt 00:04:13]} Ne4 {[%clk 01:40:22]} {[%emt 00:01:58]}
11. Nd2 {[%clk 01:13:31]} {[%emt 00:06:09]} f5 {[%clk 01:34:45]} {[%emt
00:06:06]} 12. cxd5 {[%clk 00:52:57]} {[%emt 00:21:03]} exd5 {[%clk 01:34:53]}
{[%emt 00:00:22]} 13. Rfe1 {[%clk 00:50:42]} {[%emt 00:02:46]} Ndf6 {[%clk
01:06:19]} {[%emt 00:29:04]} 14. Nf1 {[%clk 00:28:48]} {[%emt 00:22:23]} Qe7
{[%clk 00:55:08]} {[%emt 00:11:41]} 15. f3 {[%clk 00:27:33]} {[%emt 00:01:45]}
Nxc3 {[%clk 00:54:16]} {[%emt 00:01:22]} 16. Bxc3 {[%clk 00:28:01]} {[%emt
00:00:02]} g6 {[%clk 00:50:58]} {[%emt 00:03:48]} 17. Bb2 {[%clk 00:22:32]}
{[%emt 00:05:59]} Rfe8 {[%clk 00:48:14]} {[%emt 00:03:14]} 18. a3 {[%clk
00:21:46]} {[%emt 00:01:16]} Nd7 {[%clk 00:26:58]} {[%emt 00:21:46]} 19. Nd2
{[%clk 00:20:15]} {[%emt 00:02:01]} Nf6 {[%clk 00:25:12]} {[%emt 00:02:16]} 20.
b4 {[%clk 00:17:27]} {[%emt 00:03:18]} b5 {[%clk 00:22:31]} {[%emt 00:03:11]}
21. Nb3 {[%clk 00:16:50]} {[%emt 00:01:08]} Rad8 {[%clk 00:19:35]} {[%emt
00:03:26]} 22. Rac1 {[%clk 00:16:43]} {[%emt 00:00:36]} Qg7 {[%clk 00:19:23]}
{[%emt 00:00:42]} 23. Nc5 {[%clk 00:14:24]} {[%emt 00:02:50]} Bc8 {[%clk
00:19:12]} {[%emt 00:00:41]} 24. Qc2 {[%clk 00:12:10]} {[%emt 00:02:43]} Qh6
{[%clk 00:19:21]} {[%emt 00:00:21]} 25. g3 {[%clk 00:10:42]} {[%emt 00:01:59]}
Rxe3 {[%clk 00:19:23]} {[%emt 00:00:28]} 26. Rxe3 {[%clk 00:11:11]} {[%emt
00:00:01]} Qxe3+ {[%clk 00:19:45]} {[%emt 00:00:08]} 27. Qf2 {[%clk 00:11:39]}
{[%emt 00:00:01]} Qxf2+ {[%clk 00:15:29]} {[%emt 00:04:46]} 28. Kxf2 {[%clk
00:12:08]} Re8 {[%clk 00:15:47]} {[%emt 00:00:12]} 29. Rc2 {[%clk 00:10:56]}
{[%emt 00:01:43]} Nd7 {[%clk 00:15:09]} {[%emt 00:01:08]} 30. Bc1 {[%clk
00:09:27]} {[%emt 00:01:58]} Nb6 {[%clk 00:14:09]} {[%emt 00:01:31]} 31. Bf1
{[%clk 00:06:29]} {[%emt 00:03:28]} Nc4 {[%clk 00:07:45]} {[%emt 00:06:54]} 32.
Nb3 {[%clk 00:05:35]} {[%emt 00:01:24]} Kg7 {[%clk 00:04:43]} {[%emt 00:03:31]}
33. Bxc4 {[%clk 00:05:01]} {[%emt 00:01:04]} dxc4 {[%clk 00:04:04]} {[%emt
00:01:09]} 34. Na5 {[%clk 00:03:55]} {[%emt 00:01:36]} Bd7 {[%clk 00:02:45]}
{[%emt 00:01:49]} 35. Nb7 {[%clk 00:02:58]} {[%emt 00:01:28]} Be7 {[%clk
00:01:49]} {[%emt 00:01:26]} 36. Nc5 {[%clk 00:02:19]} {[%emt 00:01:08]} Bc8
{[%clk 00:01:41]} {[%emt 00:00:38]} 37. Re2 {[%clk 00:01:29]} {[%emt 00:01:20]}
Kf7 {[%clk 00:02:00]} {[%emt 00:00:10]} 38. Bb2 {[%clk 00:01:01]} {[%emt
00:00:59]} Bf6 {[%clk 00:01:40]} {[%emt 00:00:50]} 39. Bc3 {[%clk 00:01:01]}
{[%emt 00:00:30]} Rxe2+ {[%clk 00:01:43]} {[%emt 00:00:27]} 40. Kxe2 {[%clk
00:01:30]} Ke7 {[%clk 00:01:39]} {[%emt 00:00:34]} 41. f4 {[%clk 00:01:04]}
{[%emt 00:00:57]} h6 {[%clk 00:01:45]} {[%emt 00:00:24]} 42. Ke3 {[%clk
00:01:01]} {[%emt 00:00:33]} Kd6 {[%clk 00:02:06]} {[%emt 00:00:08]} 43. Bb2
{[%clk 00:01:07]} {[%emt 00:00:24]} Kd5 {[%clk 00:01:51]} {[%emt 00:00:45]} 44.
Bc3 {[%clk 00:01:09]} {[%emt 00:00:28]} g5 {[%clk 00:01:23]} {[%emt 00:00:58]}
45. h3 {[%clk 00:00:39]} {[%emt 00:01:01]} Kd6 {[%clk 00:30:00]} {[%emt
00:01:20]} 46. Bb2 {[%clk 00:28:15]} {[%emt 00:02:57]} Kd5 {[%clk 00:28:44]}
{[%emt 00:02:15]} 47. Bc3 {[%clk 00:28:43]} {[%emt 00:00:02]} gxf4+ {[%clk
00:28:50]} {[%emt 00:00:24]} 48. gxf4 {[%clk 00:28:55]} {[%emt 00:00:18]} Bh4
{[%clk 00:27:55]} {[%emt 00:01:24]} 49. Bd2 {[%clk 00:27:45]} {[%emt 00:01:41]}
Kd6 {[%clk 00:22:51]} {[%emt 00:05:34]} 50. Bc3 {[%clk 00:26:47]} {[%emt
00:01:28]} Bg3 {[%clk 00:22:48]} {[%emt 00:00:33]} 51. Bd2 {[%clk 00:24:05]}
{[%emt 00:03:12]} Kc6 {[%clk 00:12:47]} {[%emt 00:10:32]} 52. Kf3 {[%clk
00:23:28]} {[%emt 00:01:06]} Bh4 {[%clk 00:13:10]} {[%emt 00:00:07]} 53. Ke3
{[%clk 00:23:40]} {[%emt 00:00:18]} Kb6 {[%clk 00:12:56]} {[%emt 00:00:44]} 54.
Bc3 {[%clk 00:13:46]} {[%emt 00:10:24]} Kc6 {[%clk 00:10:31]} {[%emt 00:02:56]}
55. Bd2 {[%clk 00:13:22]} {[%emt 00:00:53]} Bd7 {[%clk 00:06:04]} {[%emt
00:04:57]} 56. Bc3 {[%clk 00:05:02]} {[%emt 00:08:50]} Be8 {[%clk 00:04:48]}
{[%emt 00:01:46]} 57. Bd2 {[%clk 00:04:20]} {[%emt 00:01:13]} Bf7 {[%clk
00:04:49]} {[%emt 00:00:28]} 58. Nxa6 {[%clk 00:03:46]} {[%emt 00:01:04]} Bd5
{[%clk 00:05:08]} {[%emt 00:00:11]} 59. Nc5 {[%clk 00:02:44]} {[%emt 00:01:32]}
Bg2 {[%clk 00:04:45]} {[%emt 00:00:53]} 60. Ne6 {[%clk 00:02:36]} {[%emt
00:00:38]} Bxh3 {[%clk 00:04:47]} {[%emt 00:00:28]} 61. Bc3 {[%clk 00:02:05]}
{[%emt 00:01:01]} Bg4 {[%clk 00:04:42]} {[%emt 00:00:35]} 62. d5+ {[%clk
00:00:54]} {[%emt 00:01:41]} Kxd5 {[%clk 00:04:55]} {[%emt 00:00:17]} 63. Nxc7+
{[%clk 00:01:23]} {[%emt 00:00:02]} Kc6 {[%clk 00:05:08]} {[%emt 00:00:15]} 64.
Ne6 {[%clk 00:01:23]} {[%emt 00:00:30]} h5 {[%clk 00:03:37]} {[%emt 00:02:02]}
65. Nd4+ {[%clk 00:00:56]} {[%emt 00:00:57]} Kb6 {[%clk 00:03:59]} {[%emt
00:00:08]} 66. Nc2 {[%clk 00:01:08]} {[%emt 00:00:18]} Bg3 {[%clk 00:03:57]}
{[%emt 00:00:31]} 67. Be1 {[%clk 00:00:44]} {[%emt 00:00:55]} Bxe1 {[%clk
00:03:30]} {[%emt 00:00:58]} 68. Nxe1 {[%clk 00:01:13]} {[%emt 00:00:01]} h4
{[%clk 00:03:34]} {[%emt 00:00:25]} 69. Nc2 {[%clk 00:00:52]} {[%emt 00:00:51]}
h3 {[%clk 00:01:31]} {[%emt 00:02:33]} 70. Kf2 {[%clk 00:01:15]} {[%emt
00:00:08]} Be2 {[%clk 00:01:17]} {[%emt 00:00:43]} 71. Kg3 {[%clk 00:01:14]}
{[%emt 00:00:30]} Bd3 {[%emt 00:00:46]} 72. Ne3 {[%clk 00:01:27]} Be4 {[%clk
00:01:16]} {[%emt 00:00:34]} 73. Nd1 {[%clk 00:01:46]} {[%emt 00:00:10]} Bg2
{[%clk 00:01:06]} {[%emt 00:00:40]} 74. Nc3 {[%clk 00:02:06]} {[%emt 00:00:10]}
Kc6 {[%clk 00:01:08]} {[%emt 00:00:28]} 75. Kh2 {[%clk 00:02:29]} {[%emt
00:00:07]} Kd6 {[%clk 00:01:01]} {[%emt 00:00:38]} 76. Kg3 {[%clk 00:02:46]}
{[%emt 00:00:11]} Ke6 {[%clk 00:01:10]} {[%emt 00:00:21]} 77. Kh2 {[%clk
00:03:09]} {[%emt 00:00:07]} Bf1 {[%clk 00:00:41]} {[%emt 00:01:00]} 78. Kg3
{[%clk 00:03:03]} {[%emt 00:00:35]} Bg2 {[%clk 00:00:46]} {[%emt 00:00:26]} 79.
Kh2 {[%clk 00:03:25]} {[%emt 00:00:08]} Bc6 {[%clk 00:00:40]} {[%emt 00:00:36]}
80. Kxh3 {[%clk 00:03:41]} {[%emt 00:00:15]} Kf6 {[%clk 00:01:01]} {[%emt
00:00:08]} 81. Kg3 {[%clk 00:03:35]} {[%emt 00:00:36]} Kg6 {[%clk 00:01:26]}
{[%emt 00:00:06]} 82. Kh3 {[%clk 00:03:57]} {[%emt 00:00:07]} Kh5 {[%clk
00:01:47]} {[%emt 00:00:09]} 83. Kg3 {[%clk 00:04:21]} {[%emt 00:00:05]} Kg6
{[%clk 00:01:30]} {[%emt 00:00:48]} 1/2-1/2

[Event "Masters Tournament (MTO)"]
[Site "Biel, Switzerland"]
[Date "2026.07.20"]
[Round "7.37"]
[White "Bucher, Dominic"]
[Black "Carey, Michael"]
[Result "1-0"]
[TimeControl "100+30+30sec/move"]
[WhiteTitle "-"]
[BlackTitle "-"]
[WhiteFideId "1353144"]
[BlackFideId "30923760"]
[WhiteElo "2078"]
[BlackElo "1946"]

1. e4 {[%clk 01:40:56]} {[%emt 00:00:04]} c5 {[%clk 01:40:55]} {[%emt
00:00:08]} 2. Nf3 {[%clk 01:41:18]} {[%emt 00:00:05]} Nc6 {[%clk 01:41:17]}
{[%emt 00:00:10]} 3. d4 {[%clk 01:41:43]} {[%emt 00:00:04]} cxd4 {[%clk
01:41:43]} {[%emt 00:00:04]} 4. Nxd4 {[%clk 01:42:05]} {[%emt 00:00:07]} Nf6
{[%clk 01:42:08]} {[%emt 00:00:06]} 5. Nc3 {[%clk 01:42:28]} {[%emt 00:00:08]}
d6 {[%clk 01:42:32]} {[%emt 00:00:05]} 6. Bg5 {[%clk 01:42:32]} {[%emt
00:00:26]} e6 {[%clk 01:42:48]} {[%emt 00:00:14]} 7. Qd2 {[%clk 01:42:33]}
{[%emt 00:00:30]} a6 {[%clk 01:43:12]} {[%emt 00:00:05]} 8. O-O-O {[%clk
01:42:43]} {[%emt 00:00:19]} Qb6 {[%clk 01:43:38]} {[%emt 00:00:05]} 9. Nb3
{[%clk 01:23:01]} {[%emt 00:20:12]} Be7 {[%clk 01:43:42]} {[%emt 00:00:25]} 10.
f4 {[%clk 01:19:58]} {[%emt 00:03:34]} O-O {[%clk 01:43:14]} {[%emt 00:00:57]}
11. Bd3 {[%clk 01:12:21]} {[%emt 00:08:08]} h6 {[%clk 01:35:38]} {[%emt
00:08:05]} 12. Bxf6 {[%clk 01:11:46]} {[%emt 00:01:06]} Bxf6 {[%clk 01:35:57]}
{[%emt 00:00:10]} 13. g4 {[%clk 01:11:56]} {[%emt 00:00:21]} g6 {[%clk
01:13:19]} {[%emt 00:23:07]} 14. g5 {[%clk 00:58:24]} {[%emt 00:14:03]} hxg5
{[%clk 01:08:52]} {[%emt 00:04:57]} 15. fxg5 {[%clk 00:58:12]} {[%emt
00:00:41]} Bg7 {[%clk 01:09:04]} {[%emt 00:00:19]} 16. h4 {[%clk 00:52:57]}
{[%emt 00:05:46]} Nd4 {[%clk 00:54:32]} {[%emt 00:15:01]} 17. Bc4 {[%clk
00:36:39]} {[%emt 00:16:49]} Qb4 {[%clk 00:38:03]} {[%emt 00:16:58]} 18. Nxd4
{[%clk 00:25:06]} {[%emt 00:12:03]} Qxc4 {[%clk 00:38:25]} {[%emt 00:00:07]} 19.
h5 {[%clk 00:24:59]} {[%emt 00:00:38]} gxh5 {[%clk 00:35:40]} {[%emt 00:03:15]}
20. Rxh5 {[%clk 00:21:59]} {[%emt 00:03:30]} Rd8 {[%clk 00:30:45]} {[%emt
00:05:25]} 21. Qf2 {[%clk 00:16:33]} {[%emt 00:05:56]} Bd7 {[%clk 00:24:52]}
{[%emt 00:06:23]} 22. Rh3 {[%clk 00:14:17]} {[%emt 00:02:46]} Qc5 {[%clk
00:21:10]} {[%emt 00:04:11]} 23. Qh4 {[%clk 00:06:32]} {[%emt 00:08:16]} Be8
{[%clk 00:08:16]} {[%emt 00:13:23]} 24. Qh7+ {[%clk 00:04:44]} {[%emt
00:02:19]} Kf8 {[%clk 00:08:44]} {[%emt 00:00:02]} 25. Nxe6+ {[%clk 00:03:03]}
{[%emt 00:02:11]} fxe6 {[%clk 00:08:39]} {[%emt 00:00:35]} 26. Rf3+ {[%clk
00:03:31]} {[%emt 00:00:02]} Bf7 {[%clk 00:08:35]} {[%emt 00:00:33]} 27. g6
{[%clk 00:03:44]} {[%emt 00:00:18]} Qg5+ {[%clk 00:06:39]} {[%emt 00:02:26]} 28.
Kb1 {[%clk 00:03:58]} {[%emt 00:00:16]} Rd7 {[%clk 00:06:20]} {[%emt 00:00:48]}
29. Rdf1 {[%clk 00:04:14]} {[%emt 00:00:14]} 1-0

[Event "Masters Tournament (MTO)"]
[Site "Biel, Switzerland"]
[Date "2026.07.20"]
[Round "7.38"]
[White "Stevens, Christian"]
[Black "Tan, Jimmy"]
[Result "1-0"]
[TimeControl "100+30+30sec/move"]
[WhiteTitle "-"]
[BlackTitle "-"]
[WhiteFideId "649090"]
[BlackFideId "129057499"]
[WhiteElo "2014"]
[BlackElo "1953"]

1. Nf3 {[%clk 01:40:53]} {[%emt 00:00:06]} Nf6 {[%clk 01:40:56]} {[%emt
00:00:05]} 2. g3 {[%clk 01:40:50]} {[%emt 00:00:33]} g6 {[%clk 01:41:16]}
{[%emt 00:00:11]} 3. Bg2 {[%clk 01:41:13]} {[%emt 00:00:05]} Bg7 {[%clk
01:41:40]} {[%emt 00:00:07]} 4. d3 {[%clk 01:41:01]} {[%emt 00:00:42]} c5
{[%clk 01:41:34]} {[%emt 00:00:37]} 5. O-O {[%clk 01:41:08]} {[%emt 00:00:22]}
d5 {[%clk 01:40:34]} {[%emt 00:01:30]} 6. c4 {[%clk 01:41:29]} {[%emt
00:00:09]} O-O {[%clk 01:40:22]} {[%emt 00:00:42]} 7. Nc3 {[%clk 01:41:54]}
{[%emt 00:00:05]} Nc6 {[%clk 01:35:19]} {[%emt 00:05:34]} 8. Bd2 {[%clk
01:41:32]} {[%emt 00:00:50]} d4 {[%clk 01:28:36]} {[%emt 00:07:14]} 9. Na4
{[%clk 01:41:54]} {[%emt 00:00:08]} Nd7 {[%clk 01:28:52]} {[%emt 00:00:15]} 10.
a3 {[%clk 01:42:15]} {[%emt 00:00:08]} a5 {[%clk 01:26:26]} {[%emt 00:02:56]}
11. Rb1 {[%clk 01:42:08]} {[%emt 00:00:37]} Rb8 {[%clk 01:17:20]} {[%emt
00:09:37]} 12. Qc2 {[%clk 01:30:09]} {[%emt 00:12:28]} e5 {[%clk 01:08:06]}
{[%emt 00:09:45]} 13. b4 {[%clk 01:22:14]} {[%emt 00:08:25]} axb4 {[%clk
01:08:11]} {[%emt 00:00:25]} 14. axb4 {[%clk 01:22:37]} {[%emt 00:00:07]} cxb4
{[%clk 01:07:11]} {[%emt 00:01:30]} 15. Bxb4 {[%clk 01:20:39]} {[%emt
00:02:27]} Nxb4 {[%clk 01:06:58]} {[%emt 00:00:44]} 16. Rxb4 {[%clk 01:21:01]}
{[%emt 00:00:07]} Re8 {[%clk 01:00:56]} {[%emt 00:06:33]} 17. Rfb1 {[%clk
01:17:45]} {[%emt 00:03:45]} Bf8 {[%clk 00:51:16]} {[%emt 00:10:11]} 18. Rb5
{[%clk 01:17:45]} {[%emt 00:00:30]} Qc7 {[%clk 00:48:44]} {[%emt 00:03:01]} 19.
Nd2 {[%clk 00:55:51]} {[%emt 00:22:23]} b6 {[%clk 00:37:00]} {[%emt 00:12:16]}
20. Qb2 {[%clk 00:42:56]} {[%emt 00:13:24]} Ba6 {[%clk 00:36:36]} {[%emt
00:00:55]} 21. Rb3 {[%clk 00:42:56]} {[%emt 00:00:29]} Nc5 {[%clk 00:29:04]}
{[%emt 00:08:04]} 22. Nxc5 {[%clk 00:43:04]} {[%emt 00:00:21]} Bxc5 {[%clk
00:29:26]} {[%emt 00:00:08]} 23. Ne4 {[%clk 00:43:16]} {[%emt 00:00:17]} Re6
{[%clk 00:26:23]} {[%emt 00:03:34]} 24. Ng5 {[%clk 00:38:35]} {[%emt 00:05:09]}
Re7 {[%clk 00:25:11]} {[%emt 00:01:43]} 25. Bd5 {[%clk 00:38:25]} {[%emt
00:00:41]} Rd8 {[%clk 00:20:39]} {[%emt 00:05:02]} 26. Ne4 {[%clk 00:34:52]}
{[%emt 00:04:02]} Bc8 {[%clk 00:18:13]} {[%emt 00:02:57]} 27. Qc1 {[%clk
00:28:32]} {[%emt 00:06:49]} Kg7 {[%clk 00:12:22]} {[%emt 00:06:21]} 28. Qg5
{[%clk 00:23:49]} {[%emt 00:05:12]} Rd6 {[%clk 00:09:13]} {[%emt 00:03:41]} 29.
Nxd6 {[%clk 00:20:46]} {[%emt 00:03:32]} Qxd6 {[%clk 00:09:42]} {[%emt
00:00:01]} 30. Ra1 {[%clk 00:20:20]} {[%emt 00:00:56]} Be6 {[%clk 00:08:18]}
{[%emt 00:01:54]} 31. Bg2 {[%clk 00:16:32]} {[%emt 00:04:18]} Bf5 {[%clk
00:07:39]} {[%emt 00:01:09]} 32. f3 {[%clk 00:12:35]} {[%emt 00:04:27]} h6
{[%clk 00:07:16]} {[%emt 00:00:54]} 33. Qd2 {[%clk 00:12:47]} {[%emt 00:00:17]}
Bd7 {[%clk 00:07:00]} {[%emt 00:00:47]} 34. Rbb1 {[%clk 00:10:25]} {[%emt
00:02:51]} Bc6 {[%clk 00:06:38]} {[%emt 00:00:52]} 35. Ra6 {[%clk 00:09:01]}
{[%emt 00:01:54]} Bb7 {[%clk 00:06:10]} {[%emt 00:01:00]} 36. Ra2 {[%clk
00:07:06]} {[%emt 00:02:23]} Bc6 {[%clk 00:06:26]} {[%emt 00:00:15]} 37. Qb2
{[%clk 00:06:56]} {[%emt 00:00:39]} Qf6 {[%emt 00:02:14]} 38. Ra6 {[%clk
00:05:59]} Rb7 {[%clk 00:05:25]} {[%emt 00:01:15]} 39. Qc1 {[%clk 00:05:49]}
{[%emt 00:00:39]} Qe7 {[%clk 00:05:05]} {[%emt 00:00:50]} 40. Rba1 {[%clk
00:05:01]} {[%emt 00:01:18]} Rc7 {[%clk 00:04:04]} {[%emt 00:01:32]} 41. Qb2
{[%clk 00:02:25]} {[%emt 00:03:05]} h5 {[%clk 00:28:00]} {[%emt 00:06:35]} 42.
Rxb6 {[%clk 00:29:05]} {[%emt 00:03:49]} Bxb6 {[%clk 00:27:55]} {[%emt
00:00:35]} 43. Qxb6 {[%clk 00:29:28]} {[%emt 00:00:08]} Qd6 {[%clk 00:21:36]}
{[%emt 00:06:49]} 44. Ra6 {[%clk 00:27:40]} {[%emt 00:02:17]} Qe7 {[%clk
00:21:05]} {[%emt 00:01:01]} 45. Ra5 {[%clk 00:25:42]} {[%emt 00:02:28]} Be8
{[%clk 00:17:48]} {[%emt 00:03:48]} 46. f4 {[%clk 00:23:16]} {[%emt 00:02:56]}
exf4 {[%clk 00:17:20]} {[%emt 00:00:57]} 47. Qxd4+ {[%clk 00:23:31]} {[%emt
00:00:14]} Kh7 {[%clk 00:14:24]} {[%emt 00:03:28]} 48. Re5 {[%clk 00:23:06]}
{[%emt 00:00:55]} Qd7 {[%clk 00:11:57]} {[%emt 00:02:57]} 49. Qxd7 {[%clk
00:21:40]} {[%emt 00:01:56]} Bxd7 {[%clk 00:12:22]} {[%emt 00:00:04]} 50. Re7
{[%clk 00:21:38]} {[%emt 00:00:32]} f3 {[%clk 00:07:19]} {[%emt 00:05:33]} 51.
Bxf3 {[%clk 00:20:12]} {[%emt 00:01:56]} Kg7 {[%clk 00:06:49]} {[%emt
00:01:01]} 52. Bd5 {[%clk 00:20:21]} {[%emt 00:00:20]} Kf6 {[%clk 00:06:55]}
{[%emt 00:00:24]} 53. Rxf7+ {[%clk 00:20:25]} {[%emt 00:00:26]} Ke5 {[%clk
00:07:12]} {[%emt 00:00:14]} 54. Kf2 {[%clk 00:20:30]} {[%emt 00:00:23]} g5
{[%clk 00:06:21]} {[%emt 00:01:23]} 55. Rh7 {[%clk 00:19:59]} {[%emt 00:01:00]}
Kf6 {[%clk 00:05:32]} {[%emt 00:01:19]} 56. d4 {[%clk 00:19:06]} {[%emt
00:01:23]} Kg6 {[%clk 00:05:43]} {[%emt 00:00:19]} 57. Be4+ {[%clk 00:19:21]}
{[%emt 00:00:13]} Kf6 {[%clk 00:05:55]} {[%emt 00:00:21]} 58. c5 {[%clk
00:19:38]} {[%emt 00:00:12]} 1-0

[Event "Masters Tournament (MTO)"]
[Site "Biel, Switzerland"]
[Date "2026.07.20"]
[Round "7.39"]
[White "Rosen, Noah"]
[Black "Arndt, Uwe"]
[Result "0-1"]
[TimeControl "100+30+30sec/move"]
[WhiteTitle "-"]
[BlackTitle "-"]
[WhiteFideId "1356267"]
[BlackFideId "24647713"]
[WhiteElo "1921"]
[BlackElo "2005"]

1. e4 {[%clk 01:40:52]} {[%emt 00:00:07]} c6 {[%clk 01:40:55]} {[%emt
00:00:06]} 2. d4 {[%clk 01:41:16]} {[%emt 00:00:07]} d5 {[%clk 01:41:22]}
{[%emt 00:00:03]} 3. e5 {[%clk 01:41:39]} {[%emt 00:00:06]} Bf5 {[%clk
01:41:47]} {[%emt 00:00:07]} 4. Nf3 {[%clk 01:42:01]} {[%emt 00:00:07]} e6
{[%clk 01:42:14]} {[%emt 00:00:04]} 5. Be2 {[%clk 01:42:25]} {[%emt 00:00:04]}
Nd7 {[%clk 01:42:30]} {[%emt 00:00:15]} 6. O-O {[%clk 01:42:32]} {[%emt
00:00:23]} Ne7 {[%clk 01:42:45]} {[%emt 00:00:15]} 7. c3 {[%clk 01:42:47]}
{[%emt 00:00:14]} h6 {[%clk 01:41:59]} {[%emt 00:01:17]} 8. Na3 {[%clk
01:42:24]} {[%emt 00:00:51]} c5 {[%clk 01:36:09]} {[%emt 00:06:22]} 9. Nb5
{[%clk 01:35:44]} {[%emt 00:07:09]} Nc6 {[%clk 01:36:28]} {[%emt 00:00:12]} 10.
dxc5 {[%clk 01:30:40]} {[%emt 00:05:34]} Bxc5 {[%clk 01:33:15]} {[%emt
00:03:43]} 11. b4 {[%clk 01:29:42]} {[%emt 00:01:27]} Be7 {[%clk 01:31:53]}
{[%emt 00:01:53]} 12. Nfd4 {[%clk 01:26:24]} {[%emt 00:03:47]} Bh7 {[%clk
01:24:50]} {[%emt 00:07:33]} 13. f4 {[%clk 01:24:40]} {[%emt 00:02:13]} a6
{[%clk 01:24:00]} {[%emt 00:01:23]} 14. Nxc6 {[%clk 01:23:03]} {[%emt
00:02:06]} bxc6 {[%clk 01:22:54]} {[%emt 00:01:36]} 15. Nd4 {[%clk 01:23:23]}
{[%emt 00:00:10]} Qb6 {[%clk 01:17:55]} {[%emt 00:05:29]} 16. Be3 {[%clk
01:18:12]} {[%emt 00:05:40]} c5 {[%clk 01:17:51]} {[%emt 00:00:35]} 17. Nb3
{[%clk 01:18:27]} {[%emt 00:00:14]} O-O {[%clk 01:13:07]} {[%emt 00:05:15]} 18.
Bf3 {[%clk 00:53:10]} {[%emt 00:25:47]} Rac8 {[%clk 01:12:13]} {[%emt
00:01:24]} 19. c4 {[%clk 00:49:34]} {[%emt 00:04:06]} Qxb4 {[%clk 01:06:24]}
{[%emt 00:06:20]} 20. cxd5 {[%clk 00:47:46]} {[%emt 00:02:17]} exd5 {[%clk
01:04:00]} {[%emt 00:02:54]} 21. Qxd5 {[%clk 00:46:35]} {[%emt 00:01:41]} Nb6
{[%clk 01:00:47]} {[%emt 00:03:36]} 22. Qb7 {[%clk 00:45:49]} {[%emt 00:01:23]}
Nc4 {[%clk 00:57:39]} {[%emt 00:03:37]} 23. Bf2 {[%clk 00:40:06]} {[%emt
00:06:13]} Rfe8 {[%clk 00:50:55]} {[%emt 00:07:14]} 24. Rad1 {[%clk 00:29:39]}
{[%emt 00:10:58]} a5 {[%clk 00:46:52]} {[%emt 00:04:33]} 25. Rd7 {[%clk
00:27:34]} {[%emt 00:02:34]} Qxb7 {[%clk 00:33:49]} {[%emt 00:13:34]} 26. Bxb7
{[%clk 00:27:38]} {[%emt 00:00:26]} Rcd8 {[%clk 00:33:20]} {[%emt 00:00:59]} 27.
Rfd1 {[%clk 00:27:23]} {[%emt 00:00:45]} Rxd7 {[%clk 00:30:30]} {[%emt
00:03:21]} 28. Rxd7 {[%clk 00:27:44]} {[%emt 00:00:08]} Bb1 {[%clk 00:30:36]}
{[%emt 00:00:22]} 29. Bd5 {[%clk 00:26:50]} {[%emt 00:01:26]} Nb6 {[%clk
00:30:35]} {[%emt 00:00:30]} 30. e6 {[%clk 00:19:43]} {[%emt 00:07:38]} Nxd5
{[%clk 00:28:41]} {[%emt 00:02:24]} 31. exf7+ {[%clk 00:20:03]} {[%emt
00:00:10]} Kxf7 {[%clk 00:29:05]} {[%emt 00:00:06]} 32. Nxc5 {[%clk 00:11:31]}
{[%emt 00:09:02]} Bxa2 {[%clk 00:26:03]} {[%emt 00:03:31]} 33. f5 {[%clk
00:09:42]} {[%emt 00:02:20]} Rc8 {[%clk 00:25:02]} {[%emt 00:01:27]} 34. Nd3
{[%clk 00:02:57]} {[%emt 00:07:19]} Ke8 {[%clk 00:23:37]} {[%emt 00:01:54]} 35.
Ra7 {[%clk 00:03:02]} {[%emt 00:00:26]} Nb4 {[%clk 00:15:48]} {[%emt 00:08:19]}
36. Ne1 {[%clk 00:00:37]} {[%emt 00:02:55]} Nc6 {[%clk 00:14:00]} {[%emt
00:02:18]} 37. Rb7 {[%clk 00:00:38]} {[%emt 00:00:30]} Rb8 {[%clk 00:13:59]}
{[%emt 00:00:30]} 38. Rc7 {[%clk 00:01:02]} {[%emt 00:00:06]} Bd5 {[%clk
00:13:46]} {[%emt 00:00:43]} 39. Bg3 {[%clk 00:00:57]} {[%emt 00:00:36]} Rb1
{[%clk 00:09:08]} {[%emt 00:05:07]} 40. Rc8+ {[%clk 00:00:35]} {[%emt
00:00:53]} Kd7 {[%clk 00:09:05]} {[%emt 00:00:32]} 41. Rc7+ {[%clk 00:30:23]}
{[%emt 00:00:42]} Kd8 {[%clk 00:39:19]} {[%emt 00:00:15]} 42. Kf1 {[%clk
00:28:34]} {[%emt 00:02:20]} a4 {[%clk 00:38:53]} {[%emt 00:00:56]} 43. Ke2
{[%clk 00:27:46]} {[%emt 00:01:17]} a3 {[%clk 00:36:39]} {[%emt 00:02:45]} 44.
Nc2 {[%clk 00:25:44]} {[%emt 00:02:32]} a2 {[%clk 00:36:39]} {[%emt 00:00:31]}
45. Kd3 {[%clk 00:23:16]} {[%emt 00:02:57]} Rb3+ {[%clk 00:34:55]} {[%emt
00:02:13]} 46. Kd2 {[%clk 00:21:35]} {[%emt 00:02:11]} Rxg3 {[%clk 00:35:12]}
{[%emt 00:00:14]} 0-1